bitfinex-derivatives/quotes_BTCF0:USTF0_20250719
["timestamp","ask_amount","ask_price","bid_price","bid_amount"]
[1752897336121,0.3270384,118370.0,118360.0,1.31643135]
[1752897336523,0.59974327,118370.0,118360.0,1.31643135]
[1752897336723,0.59974327,118370.0,118360.0,1.86184109]
[1752897336924,0.59974327,118370.0,118360.0,1.42028662]
[1752897337222,0.3270384,118370.0,118360.0,1.56604109]
[1752897337423,0.59974327,118370.0,118360.0,1.86180109]
[1752897337617,0.3270384,118370.0,118360.0,1.86180109]
[1752897338423,0.3270384,118370.0,118360.0,1.31639135]
[1752897338721,0.3270384,118370.0,118360.0,1.86180109]
[1752897339922,0.38774272,118370.0,118360.0,1.86180109]
[1752897340722,0.3270384,118370.0,118360.0,1.86180109]
[1752897345825,0.3173984,118370.0,118360.0,1.86180109]
[1752897346131,0.2379284,118370.0,118360.0,1.86180109]
[1752897346929,0.2130584,118370.0,118360.0,2.13450596]
[1752897347134,0.1708486,118370.0,118360.0,2.13450596]
[1752897348131,0.27174152,118380.0,118370.0,0.2129054]
[1752897348331,0.2532276,118390.0,118380.0,0.2718711]
[1752897348634,0.2532276,118390.0,118380.0,1.48419084]
[1752897349025,0.2770776,118390.0,118380.0,1.49281799]
[1752897350135,0.3120676,118390.0,118380.0,1.49281799]
[1752897350331,0.3285876,118390.0,118380.0,1.49281799]
[1752897350531,0.3611676,118390.0,118380.0,1.49281799]
[1752897350736,0.3611676,118390.0,118380.0,1.49381799]
[1752897352039,0.3611676,118390.0,118380.0,1.85461799]
[1752897356537,0.3661876,118390.0,118380.0,1.14038715]
[1752897356742,0.63889247,118390.0,118380.0,1.85461799]
[1752897357143,0.63889247,118390.0,118380.0,1.30920825]
[1752897357445,0.63889247,118390.0,118380.0,1.85461799]
[1752897358238,0.63889247,118390.0,118380.0,1.41309202]
[1752897359543,1.13889247,118390.0,118380.0,1.41309202]
[1752897360842,1.13889247,118390.0,118380.0,0.84474715]
[1752897361143,1.13889247,118390.0,118380.0,1.05217202]
[1752897361734,1.13889247,118390.0,118380.0,0.75564715]
[1752897361946,1.13889247,118390.0,118380.0,1.02835202]
[1752897362138,1.14089247,118390.0,118380.0,1.02835202]
[1752897362645,1.13989247,118390.0,118380.0,1.02835202]
[1752897364344,1.13989247,118390.0,118380.0,1.32564689]
[1752897364744,1.13989247,118390.0,118380.0,1.05294202]
[1752897364944,1.13901936,118390.0,118380.0,1.05294202]
[1752897366149,1.14001936,118390.0,118380.0,1.05194202]
[1752897367147,1.13901936,118390.0,118380.0,1.05194202]
[1752897367441,0.86631449,118390.0,118380.0,1.32464689]
[1752897367847,1.13901936,118390.0,118380.0,1.32464689]
[1752897369040,1.13901936,118390.0,118380.0,1.49346799]
[1752897369451,1.13901936,118390.0,118380.0,1.19794799]
[1752897369650,1.13901936,118390.0,118380.0,1.49338799]
[1752897369946,1.13901936,118390.0,118380.0,1.32456689]
[1752897370643,1.13901936,118390.0,118380.0,0.77915715]
[1752897370847,0.86631449,118390.0,118380.0,1.49338799]
[1752897371048,1.13901936,118390.0,118380.0,1.32456689]
[1752897371248,0.86631449,118390.0,118380.0,1.49338799]
[1752897371541,0.82168449,118390.0,118380.0,1.49338799]
[1752897371747,0.79372449,118390.0,118380.0,1.49338799]
[1752897372944,0.29372449,118390.0,118380.0,1.49338799]
[1752897373248,0.27720449,118390.0,118380.0,1.49338799]
[1752897373448,0.25335449,118390.0,118380.0,1.49338799]
[1752897375144,0.21114989,118390.0,118380.0,1.49338799]
[1752897376350,0.35608667,118410.0,118400.0,0.2814226]
[1752897376549,0.39828447,118410.0,118400.0,1.84379234]
[1752897376748,0.3375893,118410.0,118400.0,1.84379234]
[1752897377050,0.1687742,118420.0,118410.0,0.2814083]
[1752897377343,0.45972867,118430.0,118420.0,0.2131141]
[1752897377549,0.3990335,118430.0,118420.0,1.48292384]
[1752897377848,0.4086935,118430.0,118420.0,1.48292384]
[1752897378845,0.9086935,118430.0,118420.0,1.48292384]
[1752897379046,0.8990335,118430.0,118420.0,1.48292384]
[1752897379550,0.9086935,118430.0,118420.0,1.5015317]
[1752897380550,0.96938867,118430.0,118420.0,1.5015317]
[1752897380951,0.96938867,118430.0,118420.0,1.3191387]
[1752897383453,0.9086935,118430.0,118420.0,0.96886623]
[1752897383850,0.9086935,118430.0,118420.0,1.13763033]
[1752897384654,0.9086935,118430.0,118420.0,1.3191387]
[1752897391968,0.9086935,118430.0,118420.0,0.67354623]
[1752897392168,1.09020187,118430.0,118420.0,0.94407623]
[1752897393670,1.09220187,118430.0,118420.0,0.94407623]
[1752897393865,1.09320187,118430.0,118420.0,0.94407623]
[1752897394064,0.9116935,118430.0,118420.0,0.94407623]
[1752897395773,0.9116935,118430.0,118420.0,0.94399623]
[1752897398375,0.9116935,118430.0,118420.0,0.96858623]
[1752897398872,0.9116935,118430.0,118420.0,0.78707786]
[1752897399067,0.9116935,118430.0,118420.0,0.96858623]
[1752897399768,1.09320187,118430.0,118420.0,1.05679786]
[1752897400267,1.09320187,118430.0,118420.0,1.03524786]
[1752897404066,1.09320187,118430.0,118420.0,1.01664]
[1752897404374,1.23833866,118430.0,118420.0,0.65572]
[1752897405472,1.17764349,118430.0,118420.0,0.65572]
[1752897405777,1.17764349,118430.0,118420.0,0.29492]
[1752897406677,1.25368367,118430.0,118420.0,0.29492]
[1752897407778,0.1736441,118420.0,118410.0,0.43646]
[1752897408076,0.52263187,118420.0,118410.0,0.84142]
[1752897408277,0.46187247,118420.0,118410.0,0.84142]
[1752897408671,0.46187247,118420.0,118410.0,0.77766]
[1752897408868,0.70414024,118420.0,118410.0,0.77766]
[1752897409070,0.70414024,118420.0,118410.0,0.76068]
[1752897409269,0.52263187,118420.0,118410.0,0.46576]
[1752897409469,0.70414024,118420.0,118410.0,0.75564]
[1752897409670,1.20414024,118420.0,118410.0,0.75564]
[1752897411984,1.20514024,118420.0,118410.0,0.75564]
[1752897412277,1.20814024,118420.0,118410.0,0.75564]
[1752897412483,1.2318296,118420.0,118410.0,0.75564]
[1752897412783,1.30786978,118420.0,118410.0,0.75564]
[1752897412983,1.30786978,118420.0,118410.0,0.39484]
[1752897413785,1.30786978,118420.0,118410.0,0.3948]
[1752897414785,1.29253466,118420.0,118410.0,0.3948]
[1752897414985,1.29253466,118420.0,118410.0,0.2948]
[1752897416578,1.2318296,118420.0,118410.0,0.2948]
[1752897419087,1.24862573,118420.0,118410.0,0.2948]
[1752897420282,1.30933079,118420.0,118410.0,0.2948]
[1752897420683,1.32466591,118420.0,118410.0,0.2948]
[1752897420880,0.1687783,118410.0,118400.0,0.40264]
[1752897421084,0.61124324,118410.0,118400.0,0.70898]
[1752897422082,0.61324324,118410.0,118400.0,0.70898]
[1752897422280,1.11324324,118410.0,118400.0,0.70898]
[1752897422488,1.11324324,118410.0,118400.0,0.41426]
[1752897422689,1.11324324,118410.0,118400.0,0.70898]
[1752897423095,1.02342525,118410.0,118400.0,0.70898]
[1752897424792,1.02342525,118410.0,118400.0,0.65552]
[1752897426094,0.96274577,118410.0,118400.0,0.65552]
[1752897427696,0.96274577,118410.0,118400.0,0.29472]
[1752897430385,1.03878595,118410.0,118400.0,0.65552]
[1752897430589,1.09946965,118410.0,118400.0,0.65552]
[1752897430892,1.02342947,118410.0,118400.0,0.65552]
[1752897433796,0.96274577,118410.0,118400.0,0.29472]
[1752897433997,1.0234459,118410.0,118400.0,0.29472]
[1752897434197,1.20508337,118410.0,118400.0,0.29472]
[1752897434399,0.96274577,118410.0,118400.0,0.29472]
[1752897435904,0.2121426,118400.0,118390.0,0.7839154]
[1752897436204,0.45976007,118400.0,118390.0,0.8839154]
[1752897436900,0.2781226,118400.0,118390.0,0.8839154]
[1752897437201,0.45976007,118400.0,118390.0,0.8839154]
[1752897437394,0.95976007,118400.0,118390.0,0.8839154]
[1752897437595,0.7781226,118400.0,118390.0,0.8839154]
[1752897437796,0.95976007,118400.0,118390.0,0.8839154]
[1752897439803,0.7781226,118400.0,118390.0,0.8839154]
[1752897440003,0.95976007,118400.0,118390.0,0.8839154]
[1752897440204,0.7781226,118400.0,118390.0,0.8839154]
[1752897440406,0.95976007,118400.0,118390.0,0.8839154]
[1752897442806,0.95976007,118400.0,118390.0,1.06555287]
[1752897443008,1.32304914,118400.0,118390.0,1.15637867]
[1752897444312,1.32304914,118400.0,118390.0,0.8839154]
[1752897444507,1.32304914,118400.0,118390.0,1.15637867]
[1752897445906,0.77493298,118400.0,118390.0,1.15637867]
[1752897446109,1.04739625,118400.0,118390.0,1.15637867]
[1752897447513,1.07734625,118400.0,118390.0,1.15637867]
[1752897448211,1.04739625,118400.0,118390.0,1.15637867]
[1752897448514,0.98668587,118400.0,118390.0,1.15637867]
[1752897448714,1.01663587,118400.0,118390.0,1.15637867]
[1752897449115,1.02634587,118400.0,118390.0,1.15637867]
[1752897449719,1.08705625,118400.0,118390.0,1.15637867]
[1752897451018,1.02634587,118400.0,118390.0,1.15637867]
[1752897452610,0.96556587,118400.0,118390.0,1.15637867]
[1752897453214,0.96556587,118400.0,118390.0,0.8839154]
[1752897453415,0.96556587,118400.0,118390.0,1.15637867]
[1752897453621,1.02627625,118400.0,118390.0,1.15637867]
[1752897454022,0.96556587,118400.0,118390.0,1.15637867]
[1752897454817,0.99551587,118400.0,118390.0,1.15637867]
[1752897455222,1.01069587,118400.0,118390.0,1.15637867]
[1752897455422,1.07140625,118400.0,118390.0,1.51717867]
[1752897456525,1.08111625,118400.0,118390.0,1.51717867]
[1752897457226,1.10157625,118400.0,118390.0,1.51717867]
[1752897458427,1.10157625,118400.0,118390.0,1.2447154]
[1752897458726,1.10157625,118400.0,118390.0,1.51717867]
[1752897460826,0.83374298,118400.0,118390.0,1.51717867]
[1752897461025,1.04549587,118400.0,118390.0,1.51717867]
[1752897463826,1.31795914,118400.0,118390.0,1.51717867]
[1752897464230,1.04549587,118400.0,118390.0,1.51717867]
[1752897464728,1.04549587,118400.0,118390.0,0.79557867]
[1752897464926,1.04549587,118400.0,118390.0,1.15637867]
[1752897465433,1.10620625,118400.0,118390.0,1.15637867]
[1752897465927,1.04549587,118400.0,118390.0,1.51717867]
[1752897469535,0.7082826,118400.0,118390.0,1.68598547]
[1752897469738,0.6931026,118400.0,118390.0,1.68598547]
[1752897470935,0.7382326,118400.0,118390.0,1.68598547]
[1752897471132,0.7586926,118400.0,118390.0,1.68598547]
[1752897471333,0.7730326,118400.0,118390.0,1.68598547]
[1752897471733,0.78956071,118400.0,118390.0,1.68598547]
[1752897471934,0.78956071,118400.0,118390.0,1.4135222]
[1752897472134,0.78956071,118400.0,118390.0,1.68598547]
[1752897473128,0.85027109,118400.0,118390.0,1.68598547]
[1752897473839,1.12273436,118400.0,118390.0,1.68598547]
[1752897475941,0.85027109,118400.0,118390.0,1.68598547]
[1752897477541,0.78956071,118400.0,118390.0,1.68598547]
[1752897480241,0.78956071,118400.0,118390.0,1.4135222]
[1752897480442,0.78956071,118400.0,118390.0,1.68598547]
[1752897480642,0.85036637,118400.0,118390.0,1.68598547]
[1752897481736,0.78956071,118400.0,118390.0,1.68598547]
[1752897482738,0.72481071,118400.0,118390.0,1.68598547]
[1752897482943,0.68532071,118400.0,118390.0,1.95844874]
[1752897484249,0.18532071,118400.0,118390.0,1.68598547]
[1752897486850,0.18532071,118400.0,118390.0,1.95844874]
[1752897494954,0.18532071,118400.0,118390.0,1.23684874]
[1752897495254,0.18532071,118400.0,118390.0,1.95844874]
[1752897497455,0.18532071,118400.0,118390.0,1.3949568]
[1752897497655,0.18532071,118400.0,118390.0,1.93988334]
[1752897504359,0.20974071,118400.0,118390.0,1.93988334]
[1752897506457,0.18532071,118400.0,118390.0,1.93988334]
[1752897509260,0.18532071,118400.0,118390.0,1.3949568]
[1752897509454,0.18532071,118400.0,118390.0,1.93988334]
[1752897510956,0.18532071,118400.0,118390.0,1.94088334]
[1752897511764,0.18532071,118400.0,118390.0,1.94188334]
[1752897512761,0.01652811,118400.0,118390.0,1.94188334]
[1752897514868,0.18532071,118400.0,118390.0,1.94188334]
[1752897517261,0.18532071,118400.0,118390.0,2.52588334]
[1752897517565,0.18531187,118400.0,118390.0,2.52588334]
[1752897517763,0.2109759,118410.0,118390.0,2.52588334]
[1752897517963,0.2109759,118410.0,118400.0,1.91835192]
[1752897517964,0.1687783,118410.0,118400.0,1.91835192]
[1752897518270,0.1687783,118410.0,118400.0,2.01835192]
[1752897520670,0.46232066,118420.0,118410.0,0.2727084]
[1752897520969,0.46232066,118420.0,118410.0,1.47171494]
[1752897521866,0.42012696,118420.0,118410.0,1.47171494]
[1752897522270,0.3593213,118420.0,118410.0,1.47171494]
[1752897522469,0.42012696,118420.0,118410.0,1.47171494]
[1752897522776,0.22958066,118420.0,118410.0,1.47171494]
[1752897524377,0.22958066,118420.0,118410.0,0.9287884]
[1752897524570,0.22958066,118420.0,118410.0,1.47371494]
[1752897524771,0.36929406,118430.0,118420.0,0.2632741]
[1752897525070,0.36929406,118430.0,118420.0,1.17842064]
[1752897525269,0.38538406,118430.0,118420.0,1.17842064]
[1752897525875,0.39415406,118430.0,118420.0,1.17842064]
[1752897526079,0.39415406,118430.0,118420.0,1.19708452]
[1752897526276,0.3333484,118430.0,118420.0,1.19708452]
[1752897526478,0.3545784,118430.0,118420.0,1.19708452]
[1752897526875,0.3592984,118430.0,118420.0,1.19708452]
[1752897527077,0.42010406,118430.0,118420.0,1.19708452]
[1752897528480,0.41133406,118430.0,118420.0,1.19708452]
[1752897528881,0.42010406,118430.0,118420.0,1.19708452]
[1752897529680,0.41133406,118430.0,118420.0,1.19708452]
[1752897529875,0.42781644,118430.0,118420.0,1.19708452]
[1752897530776,0.37578078,118430.0,118420.0,1.19708452]
[1752897531474,0.37578078,118430.0,118420.0,0.65215798]
[1752897531681,0.37578078,118430.0,118420.0,1.19708452]
[1752897531883,0.64824405,118430.0,118420.0,1.19708452]
[1752897532185,0.64824405,118430.0,118420.0,1.02832042]
[1752897532381,0.64824405,118430.0,118420.0,1.19708452]
[1752897533178,0.37578078,118430.0,118420.0,1.19708452]
[1752897535984,0.29361078,118430.0,118420.0,1.19708452]
[1752897536289,0.29361078,118430.0,118420.0,1.46954779]
[1752897536684,0.26962078,118430.0,118420.0,1.46954779]
[1752897538087,0.26962078,118430.0,118420.0,1.19708452]
[1752897538587,0.29268078,118430.0,118420.0,1.19708452]
[1752897539887,0.29268078,118430.0,118420.0,1.55788452]
[1752897542788,0.29268078,118430.0,118420.0,1.01295798]
[1752897542995,0.29268078,118430.0,118420.0,1.55788452]
[1752897549002,0.26962078,118430.0,118420.0,1.55788452]
[1752897549401,0.29268078,118430.0,118420.0,1.55788452]
[1752897550900,0.29268078,118430.0,118420.0,1.01295798]
[1752897551103,0.33956078,118430.0,118420.0,1.55788452]
[1752897551603,0.33956078,118430.0,118420.0,1.83034779]
[1752897552204,0.33956078,118430.0,118420.0,1.55788452]
[1752897553204,0.33956078,118430.0,118420.0,1.83034779]
[1752897555004,0.30873078,118430.0,118420.0,1.83034779]
[1752897560603,0.18524178,118430.0,118420.0,1.83034779]
[1752897564410,0.20830178,118430.0,118420.0,1.83034779]
[1752897569013,0.18524178,118430.0,118420.0,1.83034779]
[1752897575518,0.1687594,118430.0,118420.0,1.83034779]
[1752897576018,0.1687594,118430.0,118420.0,1.01295798]
[1752897576318,0.1933994,118430.0,118420.0,1.83034779]
[1752897578720,0.1933994,118430.0,118420.0,1.10874779]
[1752897578921,0.1933994,118430.0,118420.0,1.83034779]
[1752897583227,0.1843994,118430.0,118420.0,1.83034779]
[1752897590340,0.1843994,118430.0,118420.0,1.81168391]
[1752897601447,0.1843994,118430.0,118420.0,1.91168391]
[1752897602647,0.1597594,118430.0,118420.0,1.91168391]
[1752897602845,0.03806,118440.0,118430.0,0.2697998]
[1752897603044,0.2067955,118440.0,118430.0,1.56840634]
[1752897604150,0.2077955,118440.0,118430.0,1.56840634]
[1752897604551,0.2097955,118440.0,118430.0,1.56840634]
[1752897606056,0.2097955,118440.0,118430.0,1.0234798]
[1752897606350,0.2097955,118440.0,118430.0,1.56840634]
[1752897608454,0.1946255,118440.0,118430.0,1.56840634]
[1752897608956,0.1946255,118440.0,118430.0,1.0234798]
[1752897609156,0.1946255,118440.0,118430.0,1.56840634]
[1752897610856,0.2237455,118440.0,118430.0,1.56840634]
[1752897614360,0.24014233,118440.0,118430.0,1.56840634]
[1752897614556,0.30094799,118440.0,118430.0,1.56840634]
[1752897615960,0.24014233,118440.0,118430.0,1.56840634]
[1752897616461,0.24014233,118440.0,118430.0,1.92920634]
[1752897617763,0.24014233,118440.0,118430.0,1.20760634]
[1752897618063,0.24014233,118440.0,118430.0,1.92920634]
[1752897619571,0.21102233,118440.0,118430.0,1.92920634]
[1752897621666,0.24014233,118440.0,118430.0,1.92920634]
[1752897621858,0.26384233,118440.0,118430.0,1.92920634]
[1752897623269,0.28803233,118440.0,118430.0,1.92920634]
[1752897624668,0.28603233,118440.0,118430.0,1.92920634]
[1752897625668,0.28503233,118440.0,118430.0,1.92920634]
[1752897628171,0.28503233,118440.0,118430.0,1.3842798]
[1752897628370,0.28503233,118440.0,118430.0,1.92920634]
[1752897632974,0.28503233,118440.0,118430.0,1.20760634]
[1752897633174,0.28503233,118440.0,118430.0,1.92920634]
[1752897633375,0.27650233,118440.0,118430.0,1.92920634]
[1752897635074,0.28535233,118440.0,118430.0,1.3842798]
[1752897635276,0.5578156,118440.0,118430.0,1.36386307]
[1752897635476,0.83027887,118440.0,118430.0,1.65674307]
[1752897635676,0.5578156,118440.0,118430.0,1.65674307]
[1752897635975,0.28535233,118440.0,118430.0,1.65674307]
[1752897636174,0.28535233,118440.0,118430.0,1.48799327]
[1752897636476,1.0598156,118440.0,118430.0,1.65674357]
[1752897636677,1.0608156,118440.0,118430.0,1.65674357]
[1752897637472,0.78835233,118440.0,118430.0,1.65674357]
[1752897637672,1.0608156,118440.0,118430.0,1.36386357]
[1752897637975,1.0608156,118440.0,118430.0,1.65686357]
[1752897639675,1.12162126,118440.0,118430.0,1.65686357]
[1752897641178,1.0608156,118440.0,118430.0,1.65686357]
[1752897641674,1.33327887,118440.0,118430.0,0.89812]
[1752897641870,1.33327887,118440.0,118430.0,0.39296]
[1752897641871,1.91985429,118440.0,118430.0,0.39296]
[1752897642072,1.64739102,118440.0,118430.0,0.29296]
[1752897642574,1.58658536,118440.0,118430.0,0.29296]
[1752897643277,1.66262554,118440.0,118430.0,0.29296]
[1752897644378,1.57018853,118440.0,118430.0,0.29296]
[1752897645079,1.6376896,118440.0,118430.0,0.29296]
[1752897648782,1.4688176,118440.0,118430.0,0.29296]
[1752897649482,1.52947747,118440.0,118430.0,0.29296]
[1752897649782,0.2686402,118430.0,118420.0,0.3608]
[1752897649982,0.81356674,118430.0,118420.0,0.65376]
[1752897650378,0.87422661,118430.0,118420.0,0.65376]
[1752897650778,0.81356674,118430.0,118420.0,0.65376]
[1752897650982,0.81356674,118430.0,118420.0,0.29296]
[1752897651183,0.87421689,118430.0,118420.0,0.29296]
[1752897651683,1.37421689,118430.0,118420.0,0.29296]
[1752897652082,1.10175362,118430.0,118420.0,0.29296]
[1752897652282,1.37421689,118430.0,118420.0,0.29296]
[1752897652684,1.37421689,118430.0,118420.0,0.32181]
[1752897652884,1.37421689,118430.0,118420.0,0.34016]
[1752897654783,0.2681044,118420.0,118410.0,0.3608]
[1752897655084,1.08549421,118420.0,118410.0,0.29324]
[1752897655285,1.14614436,118420.0,118410.0,0.29324]
[1752897655481,1.23058598,118420.0,118410.0,0.29324]
[1752897655987,0.96012271,118420.0,118410.0,0.29324]
[1752897656588,1.46512271,118420.0,118410.0,0.29324]
[1752897657089,1.48151274,118420.0,118410.0,0.29324]
[1752897660892,1.46605055,118420.0,118410.0,0.29324]
[1752897662494,1.46605055,118420.0,118410.0,0.68282]
[1752897662692,1.46605055,118420.0,118410.0,0.70202]
[1752897663190,1.46605055,118420.0,118410.0,0.34122]
[1752897665589,1.46605055,118420.0,118410.0,0.36199]
[1752897666192,1.40547256,118420.0,118410.0,0.36199]
[1752897666494,1.46607347,118420.0,118410.0,0.72279]
[1752897667296,1.40547256,118420.0,118410.0,0.72279]
[1752897667795,1.40547256,118420.0,118410.0,0.36199]
[1752897669398,1.48151274,118420.0,118410.0,0.36199]
[1752897669698,1.40547256,118420.0,118410.0,0.36199]
[1752897670492,1.48151274,118420.0,118410.0,0.36199]
[1752897672998,0.9365862,118420.0,118410.0,0.36199]
[1752897673198,1.48151274,118420.0,118410.0,0.36199]
[1752897673392,1.48151274,118420.0,118410.0,0.72279]
[1752897673900,1.48151274,118420.0,118410.0,0.36199]
[1752897674598,1.49788939,118420.0,118410.0,0.36199]
[1752897679493,1.49788939,118420.0,118410.0,0.29356509]
[1752897681291,1.52830547,118420.0,118410.0,0.29356509]
[1752897682003,1.51192882,118420.0,118410.0,0.29356509]
[1752897683598,0.1687786,118410.0,118400.0,0.42195]
[1752897683804,0.34410118,118410.0,118400.0,1.02718327]
[1752897684101,0.61656445,118410.0,118400.0,1.02718327]
[1752897684503,0.54058187,118410.0,118400.0,1.02718327]
[1752897684704,0.54558187,118410.0,118400.0,0.75472]
[1752897684906,0.54558187,118410.0,118400.0,1.02718327]
[1752897685205,1.04558187,118410.0,118400.0,1.02718327]
[1752897686614,1.04558187,118410.0,118400.0,0.75472]
[1752897686806,0.7731186,118410.0,118400.0,1.02718327]
[1752897687007,1.04558187,118410.0,118400.0,1.02718327]
[1752897688815,1.12160619,118410.0,118400.0,1.02718327]
[1752897689709,1.12160619,118410.0,118400.0,0.75472]
[1752897690009,1.12160619,118410.0,118400.0,1.02718327]
[1752897690202,0.84914292,118410.0,118400.0,1.02718327]
[1752897690404,1.12160619,118410.0,118400.0,1.02718327]
[1752897691409,1.04558187,118410.0,118400.0,1.02718327]
[1752897692010,1.06291008,118410.0,118400.0,1.02718327]
[1752897693806,1.06291008,118410.0,118400.0,0.75472]
[1752897694113,1.06291008,118410.0,118400.0,1.02718327]
[1752897695810,1.1237301,118410.0,118400.0,0.75472]
[1752897696011,1.1237301,118410.0,118400.0,1.02718327]
[1752897700013,1.1237301,118410.0,118400.0,0.75472]
[1752897700211,1.1237301,118410.0,118400.0,1.02718327]
[1752897701713,1.06291008,118410.0,118400.0,1.02718327]
[1752897702407,1.12373075,118410.0,118400.0,1.02718327]
[1752897703813,1.06291008,118410.0,118400.0,1.02718327]
[1752897704014,1.06291008,118410.0,118400.0,0.66638327]
[1752897704311,1.06291008,118410.0,118400.0,1.02718327]
[1752897704717,1.06291008,118410.0,118400.0,0.75472]
[1752897705111,1.06291008,118410.0,118400.0,1.02718327]
[1752897706112,1.06291008,118410.0,118400.0,0.73438327]
[1752897706318,1.33537335,118410.0,118400.0,0.75468]
[1752897706616,1.40192162,118410.0,118400.0,0.65356]
[1752897706811,1.48637751,118410.0,118400.0,0.3608]
[1752897707021,1.48637751,118410.0,118400.0,0.65356]
[1752897707816,1.56240183,118410.0,118400.0,0.65356]
[1752897708318,1.54718556,118410.0,118400.0,0.65356]
[1752897708821,1.48637751,118410.0,118400.0,0.65356]
[1752897711120,1.56240183,118410.0,118400.0,0.65356]
[1752897712520,1.56240183,118410.0,118400.0,0.29276]
[1752897712920,1.92320183,118410.0,118400.0,0.29276]
[1752897713122,0.2686428,118400.0,118390.0,0.3608]
[1752897713314,0.87435264,118400.0,118390.0,0.65356]
[1752897713614,0.2603771,118390.0,118380.0,0.56869929]
[1752897713820,0.54112037,118390.0,118380.0,0.86145929]
[1752897714017,0.54112037,118390.0,118380.0,1.13392256]
[1752897714921,1.04112037,118390.0,118380.0,1.13392256]
[1752897715226,1.04112037,118390.0,118380.0,0.86145929]
[1752897715919,0.7686571,118390.0,118380.0,0.86145929]
[1752897716116,1.04112037,118390.0,118380.0,0.86145929]
[1752897716519,1.04112037,118390.0,118380.0,0.56869929]
[1752897716726,1.31358364,118390.0,118380.0,0.86141929]
[1752897716923,1.31358364,118390.0,118380.0,0.83801929]
[1752897717124,0.7686571,118390.0,118380.0,0.83801929]
[1752897717416,1.04112037,118390.0,118380.0,0.83801929]
[1752897717622,1.04112037,118390.0,118380.0,0.86196929]
[1752897717817,1.10190367,118390.0,118380.0,0.86196929]
[1752897719029,1.31358364,118390.0,118380.0,0.82935929]
[1752897719327,1.04112037,118390.0,118380.0,0.82935929]
[1752897719729,1.04112037,118390.0,118380.0,0.83731929]
[1752897720027,1.04112037,118390.0,118380.0,0.54459929]
[1752897720227,1.04112037,118390.0,118380.0,0.83731929]
[1752897721235,1.04112037,118390.0,118380.0,0.86126929]
[1752897721527,1.04112037,118390.0,118380.0,1.13373256]
[1752897722831,1.10190367,118390.0,118380.0,0.83731929]
[1752897723432,1.10190367,118390.0,118380.0,0.86126929]
[1752897725040,1.10190367,118390.0,118380.0,1.13373256]
[1752897725430,0.8294404,118390.0,118380.0,1.13373256]
[1752897725927,1.10190367,118390.0,118380.0,1.13373256]
[1752897728837,0.8294404,118390.0,118380.0,0.86126929]
[1752897729035,1.10190367,118390.0,118380.0,1.13373256]
[1752897730134,1.10190367,118390.0,118380.0,0.86126929]
[1752897730337,1.10190367,118390.0,118380.0,1.13373256]
[1752897732134,1.10190367,118390.0,118380.0,0.86126929]
[1752897735145,1.31358364,118390.0,118380.0,0.86126929]
[1752897736138,1.31358364,118390.0,118380.0,0.82935929]
[1752897736839,1.31358364,118390.0,118380.0,0.83731929]
[1752897737340,1.38960796,118390.0,118380.0,0.83731929]
[1752897737643,1.38960796,118390.0,118380.0,0.86126929]
[1752897738849,1.31358364,118390.0,118380.0,0.86126929]
[1752897739150,0.7686571,118390.0,118380.0,0.86126929]
[1752897739342,1.31358364,118390.0,118380.0,0.86126929]
[1752897739544,0.7686571,118390.0,118380.0,0.86126929]
[1752897739748,1.31358364,118390.0,118380.0,0.86126929]
[1752897740148,1.04112037,118390.0,118380.0,0.86126929]
[1752897740350,1.11714469,118390.0,118380.0,0.86126929]
[1752897740554,1.11714469,118390.0,118380.0,0.83380907]
[1752897741152,1.04112037,118390.0,118380.0,0.83380907]
[1752897742251,1.11714469,118390.0,118380.0,0.83380907]
[1752897742651,1.38960796,118390.0,118380.0,0.83380907]
[1752897744651,1.38960796,118390.0,118380.0,0.84235091]
[1752897746254,1.38960796,118390.0,118380.0,0.74235091]
[1752897746854,0.84468142,118390.0,118380.0,0.74235091]
[1752897747055,1.38960796,118390.0,118380.0,0.74235091]
[1752897747755,1.11714469,118390.0,118380.0,0.74235091]
[1752897749749,0.84468142,118390.0,118380.0,0.74235091]
[1752897750056,1.11714469,118390.0,118380.0,0.74235091]
[1752897752255,1.38960796,118390.0,118380.0,0.74235091]
[1752897752856,1.38960796,118390.0,118380.0,0.71840091]
[1752897754755,1.38960796,118390.0,118380.0,0.39836091]
[1752897754951,0.84468142,118390.0,118380.0,0.64721091]
[1752897755153,1.38960796,118390.0,118380.0,0.64721091]
[1752897755965,1.38960796,118390.0,118380.0,0.70954091]
[1752897761064,1.38960796,118390.0,118380.0,0.70099907]
[1752897761365,0.2057513,118380.0,118370.0,0.46862331]
[1752897761565,0.87223415,118380.0,118370.0,0.86122331]
[1752897762258,0.87223415,118380.0,118370.0,0.83667331]
[1752897762964,1.37223415,118380.0,118370.0,0.83667331]
[1752897763259,1.31139784,118380.0,118370.0,0.86222331]
[1752897763762,1.31139784,118380.0,118370.0,0.86322331]
[1752897764565,1.37223415,118380.0,118370.0,0.86322331]
[1752897765162,1.37223415,118380.0,118370.0,0.57062331]
[1752897766265,1.37223415,118380.0,118370.0,1.15578331]
[1752897766965,1.31139784,118380.0,118370.0,1.15578331]
[1752897767167,1.37223415,118380.0,118370.0,1.15578331]
[1752897781079,1.31139784,118380.0,118370.0,1.15578331]
[1752897781275,1.38742216,118380.0,118370.0,1.15578331]
[1752897782675,1.38742216,118380.0,118370.0,0.79498331]
[1752897783182,1.38742216,118380.0,118370.0,0.20982331]
[1752897783384,1.38742216,118380.0,118370.0,0.79486331]
[1752897783580,0.84249562,118380.0,118370.0,1.15566331]
[1752897783881,1.38742216,118380.0,118370.0,1.15566331]
[1752897790786,1.38742216,118380.0,118370.0,1.12254]
[1752897790986,1.38742216,118380.0,118370.0,1.11427]
[1752897791186,1.37220967,118380.0,118370.0,1.11427]
[1752897792687,1.37220967,118380.0,118370.0,1.12297174]
[1752897794289,1.37220967,118380.0,118370.0,1.11427]
[1752897795383,1.37220967,118380.0,118370.0,1.12238]
[1752897796590,1.31139784,118380.0,118370.0,1.12238]
[1752897796887,1.31139784,118380.0,118370.0,1.13071308]
[1752897798188,1.31139784,118380.0,118370.0,0.48626308]
[1752897798486,0.2656556,118370.0,118360.0,0.02101]
[1752897798790,0.88837507,118370.0,118360.0,0.60593]
[1752897799191,0.97285236,118370.0,118360.0,0.60593]
[1752897799589,1.47285236,118370.0,118360.0,0.60593]
[1752897800089,1.47285236,118370.0,118360.0,0.60589]
[1752897803596,1.47285236,118370.0,118360.0,0.63354]
[1752897805601,1.47285236,118370.0,118360.0,0.64961]
[1752897808202,1.47285236,118370.0,118360.0,0.65806]
[1752897808402,0.92792582,118370.0,118360.0,0.65806]
[1752897808596,1.47285236,118370.0,118360.0,1.01886]
[1752897808794,1.54124807,118370.0,118360.0,0.65806]
[1752897808992,1.47285236,118370.0,118360.0,0.65806]
[1752897809604,1.47285236,118370.0,118360.0,1.01886]
[1752897811198,0.75624724,118370.0,118360.0,1.48293317]
[1752897811398,0.74654116,118370.0,118360.0,1.75539644]
[1752897811605,1.01900443,118370.0,118360.0,1.48293317]
[1752897812203,1.01900443,118370.0,118360.0,1.75539644]